[Event "44th Indian Team Championship 2025"]
[Site "Gujarat"]
[Date "2025.03.05"]
[Round "1.22"]
[White "Sharnarthi Viresh"]
[Black "Piyush Kumar"]
[Result "1-0"]
[Annotator "TA"]
[ECO "A49"]
[WhiteElo "2198"]
[BlackElo "1835"]
[PlyCount "145"]
[EventDate "2025.03.03"]
[EventCountry "IND"]
[SourceTitle "playchess.com"]
[Source "ChessBase"]
[SourceQuality "1"]
[TimeControl "5400+30"]

{[%evp 14,144,39,37,50,13,27,22,22,15,21,0,6,-11,6,-36,-10,-18,-18,-33,-37,-37,-35,-54,-43,-28,-31,-47,-52,-67,-64,-70,-71,-83,-89,-92,-19,-29,-23,-63,-62,-102,-106,-94,-111,-120,-115,-129,-122,-129,-88,-156,-154,-143,-150,-245,-256,-282,-276,-289,-225,-251,-235,-258,-162,-166,-148,-171,-184,-163,-151,-180,-168,-248,-156,-136,-150,-343,-193,-179,-191,-187,-183,-218,-212,-194,-187,-194,18,8,41,41,31,28,40,37,39,44,35,31,71,0,62,22,20,20,22,22,22,23,26,14,13,13,12,8,8,8,8,8,12,8,15,13,66,66,66,66,29974,29976,29980,29981,29980]} 1. Nf3 {[%emt 0:00:57]} Nf6 {[%emt 0:00:37]} 2. g3 {[%emt 0:00:36]} g6 {[%emt 0:00:16]} 3. b3 {[%emt 0:00:07]} Bg7 {[%emt 0:01:00]} 4. Bb2 {[%emt 0:00:03]} O-O {[%emt 0:00:23]} 5. Bg2 {[%emt 0:00:24]} d6 {[%emt 0:02:26]} 6. d4 {[%emt 0:00:23]} c6 {[%emt 0:03:22]} 7. O-O {[%emt 0:00:43]} Bg4 {[%emt 0:01:43]} 8. Nbd2 {[%emt 0:01:24]} a5 {[%emt 0:01:49] A49: 1 d4 Nf6 2 Nf3 g6 3 g3: Anti-King's Indian systems.} 9. a3 {[%emt 0:04:17]} Re8 $146 {[%emt 0:00:48]} (9... Nbd7 10. h3 Bxf3 11. Nxf3 Re8 12. Re1 e5 13. dxe5 Nxe5 14. c4 Qc7 15. Qc2 Nxf3+ 16. Bxf3 {0-1 Kiremitciyan,A (2281)-Thake,C (1773) Titled Tuesday intern op 14th Nov Early blitz 2023 (1)}) 10. h3 {[%emt 0:10:59]} Bxf3 {[%emt 0:00:12] The position is equal.} 11. Bxf3 {[%emt 0:02:29]} Nbd7 {[%emt 0:00:34]} 12. e4 {[%emt 0:00:46]} e5 {[%emt 0:07:13]} 13. Re1 {[%emt 0:09:57]} Qc7 {[%emt 0:00:33]} 14. Nc4 {[%emt 0:01:24]} b5 {[%emt 0:03:18]} (14... exd4 {with more complications.} 15. Qxd4 Re6 16. a4 Ne8) 15. dxe5 {[%emt 0:00:27]} dxe5 {[%emt 0:01:56]} 16. Ne3 {[%emt 0:04:49]} Nc5 {[%emt 0:06:09]} 17. Nf1 {[%emt 0:04:41]} Nfd7 {[%emt 0:01:59][%cal Bf6d7,Bd7b6,Bb6c4][%mdl 32]} 18. Bc1 {[%emt 0:03:11]} a4 {[%emt 0:01:30]} 19. b4 {[%emt 0:04:35]} Ne6 {[%emt 0:00:16]} 20. Bg4 {[%emt 0:00:02]} Nb6 {[%emt 0:02:06]} 21. Bxe6 {[%emt 0:00:07]} Rxe6 {[%emt 0:00:06]} 22. Qe2 {[%emt 0:00:21]} Rd8 {[%emt 0:00:39] Black plays in the center} 23. Be3 {[%emt 0:09:50]} Nc4 {[%emt 0:02:06]} 24. Bg5 {[%emt 0:00:01]} Rd4 {[%emt 0:03:19]} (24... Bf6 $17 25. Bh6 Bg7) 25. c3 $11 {[%emt 0:02:24]} Rd7 {[%emt 0:00:20]} 26. Ne3 {[%emt 0:08:42]} Nd6 {[%emt 0:09:24][%cal Oh7h6]} 27. Nc2 {[%emt 0:00:10]} f5 {[%emt 0:02:33]} 28. exf5 {[%emt 0:01:57]} gxf5 {[%emt 0:00:02]} 29. Ne3 {[%emt 0:02:48]} Rg6 $36 {[%emt 0:06:10][%mdl 2048] Keeping White busy.} 30. Qh5 {[%emt 0:05:56]} Rf7 {[%emt 0:03:16]} (30... Ne4 31. Bh4 f4 (31... Nxc3 32. Nxf5 Nd5 33. Nxg7 $16) 32. Nf5 $16) 31. Ng2 {[%emt 0:03:22]} Ne4 {[%emt 0:08:34]} 32. Rxe4 {[%emt 0:00:26]} fxe4 $17 {[%emt 0:00:10]} 33. Be3 {[%emt 0:00:29]} Rd6 {[%emt 0:03:24]} 34. Rc1 {[%emt 0:04:33]} (34. Nh4 $17) 34... Qd7 $19 {[%emt 0:06:03]} 35. Ne1 {[%emt 0:03:44] [#]} Rd2 $1 {[%emt 0:05:00][%mdl 512]} 36. Ng2 {[%emt 0:05:08]} (36. Ra1 Rb2) 36... Rd3 {[%emt 0:01:55]} 37. Kh2 {[%emt 0:01:43]} Qe6 {[%emt 0:02:54]} 38. Qh4 {[%emt 0:01:54]} Qd5 {[%emt 0:03:28]} 39. Qg4 {[%emt 0:00:23]} Rf3 {[%emt 0:02:53]} 40. h4 {[%emt 0:00:01]} Rf6 {[%emt 0:04:42]} 41. h5 {[%emt 0:01:36]} h6 {[%emt 0:00:05]} 42. Bc5 {[%emt 0:00:48]} Qf7 {[%emt 0:01:30]} 43. Rc2 {[%emt 0:02:03]} (43. Be3 $142) 43... Rf5 {[%emt 0:00:34]} 44. Nh4 {[%emt 0:00:02]} Rxh5 {[%emt 0:02:13]} 45. Qxe4 $2 {[%emt 0:01:06]} (45. Be3 $17 {was necessary.}) 45... Qf3 {[%emt 0:01:19]} (45... Qc4 $142 46. Qxc4+ bxc4) 46. Qxf3 {[%emt 0:00:39]} Rxf3 {[%emt 0:00:05]} 47. Be3 {[%emt 0:00:11]} e4 {[%emt 0:00:50] ...Bf6 is the strong threat.} 48. Kg2 {[%emt 0:00:21]} Rf7 {[%emt 0:00:04]} 49. c4 {[%emt 0:00:09]} Rd7 {[%emt 0:00:36]} 50. Ng6 {[%emt 0:00:23]} Rd3 $2 {[%emt 0:00:59]} (50... Kf7 $19 51. Nf4 Rf5 52. cxb5 cxb5) 51. g4 $11 {[%emt 0:00:41]} Rxe3 {[%emt 0:01:33]} 52. fxe3 {[%emt 0:00:33][%mdl 4096] Endgame KRB-KRN} Rg5 {[%emt 0:00:03][%csl LRg4,LRg6]} 53. Ne7+ {[%emt 0:00:05]} Kh7 {[%emt 0:00:40]} 54. Nxc6 {[%emt 0:00:37] Threatens to win with c5.} bxc4 {[%emt 0:00:23]} 55. Rxc4 {[%emt 0:00:59]} Bb2 {[%emt 0:01:03]} 56. Rxe4 {[%emt 0:01:19][%cal Ob4b5]} Bxa3 {[%emt 0:00:06]} 57. Re7+ {[%emt 0:00:25]} (57. Kf3 $16) 57... Kg8 {[%emt 0:00:02]} (57... Rg7 $11 58. Re4 Bc1) 58. Ra7 {[%emt 0:00:41]} Bxb4 $1 {[%emt 0:01:11]} 59. Rxa4 {[%emt 0:00:03]} Bd2 {[%emt 0:00:16]} 60. Kf3 {[%emt 0:00:48]} h5 {[%emt 0:00:11]} 61. gxh5 {[%emt 0:00:28]} Rxh5 {[%emt 0:00:01]} 62. e4 {[%emt 0:00:12]} Kf7 {[%emt 0:00:21]} 63. Ra7+ {[%emt 0:00:37]} Kf6 {[%emt 0:00:20]} 64. Rd7 {[%emt 0:00:39]} Bc3 {[%emt 0:00:50]} 65. Rd6+ {[%emt 0:00:35]} Kf7 {[%emt 0:00:03]} 66. Kg4 {[%emt 0:00:36]} Rh1 {[%emt 0:00:49]} 67. Rd3 {[%emt 0:00:18]} Bf6 {[%emt 0:00:30]} 68. e5 {[%emt 0:00:36]} Rh4+ {[%emt 0:01:12]} (68... Rc1 $11) 69. Kf5 $14 {[%emt 0:00:09] White has more active pieces.} Rh5+ {[%emt 0:01:21]} 70. Ke4 $1 {[%emt 0:00:03]} Be7 $2 {[%emt 0:00:19][%mdl 8192] [#]} (70... Bxe5 $14 71. Nxe5+ Ke6) 71. Rd7 {[%emt 0:00:06] White mates.} Rh6 {[%emt 0:00:14]} 72. Rxe7+ {[%emt 0:00:08]} Kf8 {[%emt 0:00:07]} 73. Rc7 {[%emt 0:00:34] White used his chance.   Weighted Error Value: White=0.24 (precise) /Black=0.27 (precise)   Loses game:     	White=1     	Black=1      Missed win:     	---       	Black=1      Mistake:       	White=4     	Black=4      Inaccurate:     	White=5     	Black=4      OK:         	White=14    	Black=25     Best:        	White=6     	Black=3      Strong:       	White=1     	Black=1} 1-0

[Event "44th Indian Team Championship 2025"]
[Site "Gujarat"]
[Date "2025.03.05"]
[Round "1.23"]
[White "Md Tabsheer Alam"]
[Black "Jain, Kushagra"]
[Result "1/2-1/2"]
[Annotator "TA"]
[ECO "B90"]
[WhiteElo "1794"]
[BlackElo "2138"]
[PlyCount "154"]
[EventDate "2025.03.03"]
[EventCountry "IND"]
[SourceTitle "playchess.com"]
[Source "ChessBase"]
[SourceQuality "1"]
[TimeControl "5400+30"]

{[%evp 11,154,17,20,0,15,-6,86,59,75,9,0,6,13,-8,17,0,29,21,35,0,0,0,0,0,0,0,0,0,0,-104,-56,-105,-52,-93,-33,-31,0,0,0,0,0,0,0,0,0,0,4,0,0,22,39,0,0,0,0,0,0,9,10,-11,252,8,252,252,230,195,213,190,194,200,183,68,68,0,4,8,190,190,193,193,187,0,0,0,0,0,772,769,740,754,744,731,498,201,1522,1520,1619,1637,934,1568,1255,1173,971,835,1604,1537,885,0,0,0,0,0,0,0,0,0,0,0,0,0,0,0,0,0,0,0,0,0,0,0,0,0,0,0,0,0,0,0,0,0,0,0,0,8,40]} 1. e4 {[%emt 0:00:22]} c5 {[%emt 0:00:34]} 2. Nf3 {[%emt 0:00:33]} d6 {[%emt 0:00:23]} 3. d4 {[%emt 0:00:06]} cxd4 {[%emt 0:00:02]} 4. Nxd4 {[%emt 0:00:06]} Nf6 {[%emt 0:00:13]} 5. Nc3 {[%emt 0:00:07]} a6 {[%emt 0:00:04]} 6. h3 {[%emt 0:00:31]} e5 {[%emt 0:00:37]} 7. Nf3 {[%emt 0:00:08] 7.Nb3 is becoming the main line. B90: Sicilian Najdorf: Unusual White 6th moves, 6 Be3 Ng4 and 6 Be3 e5.} b5 {[%emt 0:10:18][%cal Bb7b5,Bb5b4][%mdl 32]} 8. Bg5 {[%emt 0:03:42]} Be6 $146 {[%emt 0:03:36]} (8... Nbd7 $11) (8... Be7 9. Bxf6 Bxf6 10. a4 bxa4 11. Rxa4 O-O 12. Bc4 Nd7 13. Bd5 Rb8 14. Ra2 Be7 {1-0 Rogic,D (2431)-Culum,S (2349) EU-ch Rapid Zagreb 2023 (9)}) 9. a4 {[%emt 0:10:14] White is better. White is more active.} b4 {[%emt 0:24:36] [#]} 10. Nd5 {[%emt 0:04:29]} (10. Bxf6 $1 $16 Qxf6 11. Nd5) 10... Nbd7 $11 {[%emt 0:01:20]} 11. Bc4 {[%emt 0:18:45]} Be7 {[%emt 0:02:02]} 12. Nxf6+ {[%emt 0:06:47]} Nxf6 {[%emt 0:07:24]} 13. Qd3 {[%emt 0:07:10]} O-O {[%emt 0:16:52]} 14. Bxf6 {[%emt 0:05:12]} Bxf6 {[%emt 0:00:56]} 15. O-O {[%emt 0:00:54]} Bxc4 {[%emt 0:08:37]} 16. Qxc4 {[%emt 0:00:13]} Qb6 {[%emt 0:00:11]} 17. a5 {[%emt 0:15:29]} Qb7 {[%emt 0:00:21]} 18. Rfd1 {[%emt 0:02:29]} Rac8 {[%emt 0:06:13]} 19. Qd3 {[%emt 0:00:46][%cal Of3d2]} Rfd8 {[%emt 0:01:07]} 20. Ra2 {[%emt 0:01:24]} (20. c3 $11 {remains equal.}) 20... Rc5 {[%emt 0:02:21]} (20... Rxc2 $17 21. Qxc2 b3) 21. Nd2 {[%emt 0:13:53]} (21. b3 $15 {deserves consideration.}) 21... Qc6 {[%emt 0:01:59]} ({Black should try} 21... Qc8 $17 {[%cal Od6d5] aiming for ...d5!.} 22. Qb3 Rxc2) 22. b3 {[%emt 0:02:57]} Rc3 {[%emt 0:03:08]} (22... d5 $17 23. Nf3 h6 (23... dxe4 24. Qxd8+ Bxd8 25. Rxd8+)) 23. Qd5 $15 {[%emt 0:00:17]} Rxc2 {[%emt 0:03:09]} 24. Qxc6 {[%emt 0:00:17]} Rxc6 {[%emt 0:00:01]} 25. Nc4 {[%emt 0:00:08]} Kf8 {[%emt 0:04:31]} 26. Ra4 {[%emt 0:00:30]} Rb8 {[%emt 0:00:43]} 27. Nb6 {[%emt 0:01:17]} (27. Rxd6 Rxd6 28. Nxd6 Be7 $17) 27... Ke8 {[%emt 0:00:20] Dodges Nd7} 28. Rxb4 {[%emt 0:00:28]} Bd8 {[%emt 0:00:41][%cal Rd8b6]} 29. Rc4 {[%emt 0:01:30]} Rxc4 {[%emt 0:00:47]} 30. Nxc4 {[%emt 0:00:06]} Rxb3 {[%emt 0:01:45]} 31. Rxd6 $11 {[%emt 0:01:47][%mdl 4096] Endgame KRB-KRN} (31. Nxd6+ $5 Kf8 32. Nxf7 Bxa5 33. Nxe5 $14) 31... Rb4 {[%emt 0:00:22]} 32. Rc6 {[%emt 0:00:48]} f6 {[%emt 0:00:26]} 33. Nd6+ {[%emt 0:00:22]} Kd7 {[%emt 0:00:00]} 34. Rxa6 {[%emt 0:00:36]} Ra4 {[%emt 0:01:09]} (34... Bxa5 35. Nf5 Rb1+ 36. Kh2 $16) 35. Nb7 {[%emt 0:00:59]} Ra1+ {[%emt 0:00:22][%mdl 1024] Black has compensation.} 36. Kh2 {[%emt 0:00:06]} Bc7 $2 {[%emt 0:00:36] Prevents Rd6+.} (36... Be7 $11 {and Black is okay.}) 37. Nc5+ $18 {[%emt 0:00:27]} Ke7 {[%emt 0:00:12]} 38. Re6+ {[%emt 0:01:46]} Kf7 {[%emt 0:00:28][%cal Oa1c1]} 39. a6 {[%emt 0:00:15]} Bd8 {[%emt 0:00:36]} 40. Rc6 {[%emt 0:00:21]} Ra2 {[%emt 0:00:48]} 41. Nb7 {[%emt 0:00:51]} (41. Ne6 $18 Be7 42. Nc7) 41... Be7 $14 {[%emt 0:00:22][%cal Of7e8]} 42. Kg3 {[%emt 0:00:17]} (42. Rb6 $14) 42... Ra3+ $11 {[%emt 0:00:39]} 43. f3 {[%emt 0:00:24]} Ra2 $2 {[%emt 0:00:01]} (43... Ke8 $1 $11) 44. Nd6+ $18 {[%emt 0:01:33]} Bxd6 {[%emt 0:00:24]} 45. Rxd6 {[%emt 0:00:05] KR-KR. White is a pawn up.} g5 {[%emt 0:01:01]} 46. h4 $2 {[%emt 0:01:13]} ({Better is} 46. Rd7+ $18 Kg6 47. a7) 46... gxh4+ $11 {[%emt 0:00:30]} 47. Kxh4 {[%emt 0:00:16]} Rxg2 {[%emt 0:00:18]} 48. Rd7+ {[%emt 0:00:14]} Ke6 $2 {[%emt 0:00:24][%mdl 8192]} (48... Kg6 $11) 49. a7 $18 {[%emt 0:00:11]} (49. Rxh7 $2 {perishes.} Rh2+ 50. Kg3 Rxh7 $19) 49... Rh2+ {[%emt 0:00:53] [#]} 50. Kg3 $1 {[%emt 0:00:14]} Ra2 {[%emt 0:00:04]} 51. Rxh7 {[%emt 0:00:04]} Ra1 {[%emt 0:00:41]} 52. Kg4 {[%emt 0:00:18]} (52. Kh4 $142 Rh1+ 53. Kg4) 52... Ra2 $2 {[%emt 0:00:47]} (52... f5+ 53. exf5+ Kf6 54. Rh6+ Kg7) 53. Kh5 {[%emt 0:00:08]} Ra1 {[%emt 0:00:27]} 54. Kg6 {[%emt 0:00:12]} Rg1+ {[%emt 0:00:13]} 55. Kh6 {[%emt 0:00:05]} Ra1 {[%emt 0:00:16]} 56. Rb7 {[%emt 0:01:11]} f5 {[%emt 0:00:58]} 57. Kg7 {[%emt 0:01:26]} fxe4 {[%emt 0:00:13]} 58. fxe4 {[%emt 0:00:11]} Ra2 {[%emt 0:00:41]} 59. Kf8 $2 {[%emt 0:00:12]} (59. Rb6+ $18 Ke7 60. Rf6 Rg2+ 61. Kh7) 59... Kf6 $1 $11 {[%emt 0:00:22] The position is equal.} 60. Ke8 {[%emt 0:00:30]} Kg5 {[%emt 0:00:36]} 61. Rf7 {[%emt 0:00:47]} Kg6 {[%emt 0:00:04]} 62. Re7 {[%emt 0:00:14]} Kf6 {[%emt 0:00:14] Against Re6+} 63. Kd8 {[%emt 0:00:10]} Ra1 {[%emt 0:01:02]} 64. Rb7 {[%emt 0:02:06]} Kg5 $1 {[%emt 0:00:11]} 65. Rf7 {[%emt 0:00:54] Kc8 would kill now.} Kg6 $1 {[%emt 0:00:05]} 66. Rc7 {[%emt 0:00:40]} Kg5 $1 {[%emt 0:00:13]} 67. Rf7 {[%emt 0:00:36] and Kc8 should not be overlooked} Kg6 $1 {[%emt 0:00:05]} 68. Ke8 {[%emt 0:00:23]} Ra2 {[%emt 0:00:23]} 69. Kf8 {[%emt 0:00:37]} Ra1 {[%emt 0:00:13]} 70. Rb7 {[%emt 0:00:35]} Kg5 {[%emt 0:00:28]} 71. Rf7 {[%emt 0:00:25]} Kg6 {[%emt 0:00:04]} 72. Rg7+ {[%emt 0:00:28]} Kf6 {[%emt 0:00:10]} 73. Kg8 {[%emt 0:00:07]} Ra2 {[%emt 0:00:23]} 74. Rh7 {[%emt 0:00:45]} Kg6 {[%emt 0:00:26]} 75. Rf7 {[%emt 0:00:24]} Ra1 {[%emt 0:00:09]} 76. Kf8 {[%emt 0:00:17]} Ra2 {[%emt 0:00:31]} 77. Ke8 {[%emt 0:00:18]} Ra1 {[%emt 0:00:33] Blacks defense is rewarded with a draw.   Weighted Error Value: White=0.37/Black=0.51  Loses game:     	---       	Black=3      Missed win:     	White=2     	---        Mistake:       	White=5     	Black=4      Inaccurate:     	White=4     	Black=3      OK:         	White=15    	Black=22     Best:        	White=6     	Black=7      Strong:       	---       	Black=4} 1/2-1/2

[Event "44th Indian Team Championship 2025"]
[Site "Gujarat"]
[Date "2025.03.05"]
[Round "1.24"]
[White "Gaikwad Manas"]
[Black "Divyanshu Kumar Singh"]
[Result "0-1"]
[Annotator "TA"]
[ECO "B94"]
[WhiteElo "2179"]
[BlackElo "1756"]
[PlyCount "102"]
[EventDate "2025.03.03"]
[EventCountry "IND"]
[SourceTitle "playchess.com"]
[Source "ChessBase"]
[SourceQuality "1"]
[TimeControl "5400+30"]

{[%evp 12,102,5,0,12,15,21,0,0,8,2,0,0,-14,-21,0,5,0,0,-4,0,12,0,0,0,0,0,0,0,3,36,-8,72,25,108,0,0,-8,0,0,0,0,0,0,0,0,0,0,0,-62,-21,-143,0,0,0,0,0,0,0,0,0,-27,-30,-30,-32,-42,-43,-186,-183,-491,-506,-534,-510,-1396,-1385,-792,0,0,0,-5945,-7080,-29985,-29986,-29986,-29987,-29987,-29988,-29988,-29989,-29989,-29990,-29995,-29996]} 1. e4 {[%emt 0:00:05]} c5 {[%emt 0:00:35]} 2. Nf3 {[%emt 0:00:05]} d6 {[%emt 0:00:03]} 3. d4 {[%emt 0:00:06]} cxd4 {[%emt 0:00:04]} 4. Nxd4 {[%emt 0:00:05]} Nf6 {[%emt 0:00:06]} 5. Nc3 {[%emt 0:00:03]} a6 {[%emt 0:00:02]} 6. Bg5 {[%emt 0:00:37]} Nbd7 {[%emt 0:00:03]} 7. Bc4 {[%emt 0:00:47]} Qb6 {[%emt 0:00:14] B94: Sicilian Najdorf: 6 Bg5 Nbd7.} 8. Bb3 {[%emt 0:00:41]} e6 {[%emt 0:00:03]} 9. Qd2 {[%emt 0:00:37]} Be7 {[%emt 0:00:05] The position is equal.} 10. O-O-O {[%emt 0:00:40]} Nc5 $1 {[%emt 0:00:05]} 11. f3 {[%emt 0:00:56]} Qc7 {[%emt 0:00:02]} 12. Kb1 {[%emt 0:11:53]} b5 {[%emt 0:00:08]} 13. a3 {[%emt 0:00:35]} O-O {[%emt 0:00:06] 13...Rb8 is the modern continuation.} 14. g4 {[%emt 0:01:24]} Rb8 {[%emt 0:00:46]} 15. h4 {[%emt 0:02:07]} b4 {[%emt 0:03:02]} (15... Bd7 {simplifies} 16. h5 Rfc8 17. Bxf6 Bxf6 18. g5 Be7) 16. axb4 {[%emt 0:01:07]} Rxb4 {[%emt 0:00:04]} 17. Bxf6 {[%emt 0:00:42]} Bxf6 {[%emt 0:00:02]} 18. Nd5 $1 {[%emt 0:00:46]} exd5 {[%emt 0:00:09]} 19. Qxb4 {[%emt 0:00:06]} dxe4 {[%emt 0:00:09]} 20. g5 {[%emt 0:00:45]} Be5 {[%emt 0:00:02]} 21. Bd5 $146 {[%emt 0:05:20]} ({Predecessor:} 21. fxe4 Bg4 22. Bd5 Bxd1 23. Rxd1 Rb8 24. Qa3 Qd7 25. Ka2 Ne6 26. Bxe6 fxe6 27. Qxa6 Qe8 28. Qc4 Rc8 29. Qb3 Rb8 30. Qc4 Rc8 31. Qb3 {½-½ Albornoz Cabrera,C (2579)-Rodshtein,M (2600) Olympiad-45 Budapest 2024 (8.1)}) 21... a5 {[%emt 0:14:42]} (21... Be6 $1 $11 22. fxe4 Rb8) 22. Qd2 {[%emt 0:03:58]} (22. Qa3 $16) 22... Bb7 {[%emt 0:11:57] [#] Inhibits Nc6.} (22... Qb6 $1 $11) 23. Bxb7 {[%emt 0:33:07]} (23. f4 $1 $16 {[%cal Rf4e5]}) 23... Qxb7 $11 {[%emt 0:00:16]} 24. f4 $1 $132 {[%emt 0:00:34][%mdl 2048] [#] White has counterplay} (24. Qxa5 $2 Rb8 (24... exf3 25. Qb5 $15) 25. Qa3 Na4 $19) 24... Rb8 $1 {[%emt 0:11:39][%csl Gb8][%cal Rb7b2]} 25. Nb3 $1 {[%emt 0:00:08]} (25. fxe5 $2 Qxb2#) (25. b3 $2 Bxd4 26. Rh3 (26. Qxd4 $2 Nxb3 27. Qc3 Nd2+ 28. Kc1 Nf3 $19) 26... Nd3 $19) 25... a4 {[%emt 0:07:34]} (25... Nxb3 $2 26. cxb3 Bxb2 27. Qxb2 $18) 26. fxe5 {[%emt 0:13:31]} axb3 {[%emt 0:00:13]} 27. cxb3 {[%emt 0:00:03]} (27. exd6 e3 28. Qe2 Na4 $19 (28... bxc2+ $2 29. Qxc2 e2 30. Rde1 $19)) 27... Nd3 {[%emt 0:17:03]} (27... dxe5 28. Qd8+ Rxd8 29. Rxd8#) (27... Nxb3 28. Qxd6 (28. Qd5 Qxd5 29. Rxd5 dxe5 $16) 28... h6 (28... e3 29. Qd8+ Rxd8 30. Rxd8#) 29. e6 (29. gxh6 e3 $11) 29... fxe6 30. gxh6 $18 (30. Qxe6+ Kh8 $18)) 28. exd6 {[%emt 0:01:42]} Qxb3 {[%emt 0:01:13]} 29. d7 {[%emt 0:00:04][%cal Oh1e1] Hoping for Rhe1!.} Ra8 {[%emt 0:07:25] ( -> ...Qa2+) Dancing on a razor blade.} 30. d8=Q+ {[%emt 0:04:14]} Rxd8 {[%emt 0:02:23][%csl Od3] Strong Square Black (d3) Black is more active.} 31. Qc2 {[%emt 0:00:10] White is weak on the light squares} (31. Rhe1 $11 {keeps the balance.} Rf8 32. Re3 (32. Rxe4 $2 Nxb2 33. Qc2 Qb7 $19)) 31... Qxc2+ {[%emt 0:07:20]} ({Black should try} 31... Qd5 $17 {Hoping for ...Ra8.} 32. Rh3 Ra8 33. Rhxd3 Qa2+ (33... exd3 34. Rxd3 Qa2+ 35. Kc1 $17) 34. Kc1 exd3 35. Rxd3 Qa1+ 36. Kd2 Rb8) 32. Kxc2 $17 {[%emt 0:00:02][%mdl 4096] Endgame KRR-KRN} Rc8+ {[%emt 0:00:02]} 33. Kb1 {[%emt 0:00:10]} f5 {[%emt 0:02:37]} 34. gxf6 {[%emt 0:01:02]} gxf6 {[%emt 0:00:02]} 35. Rhf1 {[%emt 0:00:05]} Kf7 {[%emt 0:01:10]} 36. Rd2 {[%emt 0:00:46]} Ke6 {[%emt 0:03:01][%mdl 1024] Black has compensation.} 37. Rc2 $1 {[%emt 0:00:40]} Rf8 {[%emt 0:00:34]} 38. Rc4 {[%emt 0:07:54]} Ke5 {[%emt 0:00:53]} 39. Ra4 {[%emt 0:01:07]} (39. Kc2 $15) 39... f5 $19 {[%emt 0:02:35]} 40. Ra5+ $2 {[%emt 0:00:15] [#]} (40. Rg1 {is a better chance.}) 40... Kd4 $1 {[%emt 0:01:29]} (40... Ke6 41. Rg1 $11 (41. Ra6+ Ke5 $11)) 41. Kc2 {[%emt 0:02:03][%cal Oc2d2]} f4 {[%emt 0:02:33]} 42. Kd2 {[%emt 0:03:21]} (42. Ra7 $142 f3 43. b4) 42... e3+ {[%emt 0:01:13]} 43. Kd1 {[%emt 0:01:14]} Nxb2+ $2 {[%emt 0:05:19]} (43... f3 $1 $19 {( -> ...e2+)} 44. Ra4+ Ke5 45. Rxf3 Nxb2+ (45... Rxf3 $2 46. Ke2 $19) 46. Ke2 Rxf3 47. Kxf3 Nxa4 48. Kxe3 Kf5) 44. Ke2 $11 {[%emt 0:00:10]} Ke4 {[%emt 0:00:36]} 45. Rb5 $2 {[%emt 0:01:06][%mdl 8192]} ({But not} 45. Rf3 $2 Rd8 46. Rh3 Rd2+ 47. Kf1 Nd3 (47... f3 48. Rxf3 Kxf3 49. Rf5+ Ke4 50. Rg5 e2+ 51. Ke1 Nd3+ 52. Kxd2 e1=Q+ 53. Kc2 Qc1+ 54. Kb3 Qb2+ 55. Kc4 Qb4#) 48. Ra4+ Kf5 $19) (45. Ra7 $11) 45... Nd3 $19 {[%emt 0:01:47] ( -> ...f3+)} 46. Ra1 {[%emt 0:03:29]} f3+ {[%emt 0:00:24] Black mates.} 47. Kd1 {[%emt 0:00:01]} f2 {[%emt 0:01:22]} 48. Ke2 {[%emt 0:00:08]} Nf4+ {[%emt 0:00:13]} 49. Kf1 {[%emt 0:00:01]} Kf3 {[%emt 0:00:27][%csl Gf3,Gf4][%cal Re3e2]} 50. Ra2 {[%emt 0:02:24]} Rd8 {[%emt 0:01:05][%cal Rd8d1]} 51. Rb1 {[%emt 0:00:15]} Rd3 {[%emt 0:00:28] Weighted Error Value: White=0.60/Black=0.20 (precise)   Loses game:     	White=1     	---        Mistake:       	White=6     	Black=3      Inaccurate:     	White=3     	Black=1      OK:         	White=11    	Black=13     Best:        	White=3     	Black=6      Strong:       	White=4     	Black=2} ({Not} 51... e2+ 52. Rxe2 Nxe2 53. Rb3+ Kg4 54. Kxe2 $11) 0-1